{"text_format":"1","workbook":"xlsx","n_sheets":6,"sheets":["Sheet1","Req Form","Water Proj Application","shtPrintPrev","Sheet3","Lists"],"not_rendered":{"charts":0,"images":0,"macros":1,"external_links":0,"defined_names":16,"comments":1,"pivot_tables":0},"unopened":[],"bounds":{"document_bytes":16777216,"sheet_cells":100000,"rows_first":2000,"rows_last":500,"rows_between":2000,"halvings":0,"cell_chars":16384,"cell_head_chars":4096},"cells_cut":0,"cells_raw":0,"read":"whole","date_system":"1900"}

{"sheet":"Sheet1","index":0,"n_rows":44,"n_cols":2,"rows_kept":44,"cut":false,"hidden":true,"merged":[]}
[]
[]
[]
[]
["Item","Answer"]
["Member Sponsor (Need House member list)"]
["Project Title"]
["Recipient"]
["County (Need county list)"]
["Contact"]
["Contact Address"]
["Contact Phone"]
["Contact E-mail"]
["Project Description \n(Comment Field)"]
["Statewide Goal\n(Improved Springshed Water Quality, Improved Springshed Water Quantity, Alternative Water Supply, Reduced Nutrient Load in Impaired Water Body, Basin Management Action Plan Task, Water Quality in Area of Critical State Concern, N/A)"]
["Is project addressed in a state, regional or local plan?\n(Yes or No)"]
["Name the plan and cite page numbers\n(Comment Field)"]
["Measurable Outcome Anticipated or Return on State Investment (in dollars/time period)\n(Comment Field)"]
["Total Cost of Project"]
["Amount Requested From The State"]
["Local Match Amount\n(Enclose written copy of the vote or other commitment by a local elected official)"]
["Type of Match Pledged\n(Cash or In-kind)"]
["Is the applicant claiming status as a financially disadvantaged community?\n(Yes or No)"]
["Population/Economic Status\n(Financially Disadvantaged Municipality, Rural Area of Economic Concern, Rural Community Experiencing Economic Distress)"]
["Was this project previously funded by the state?\n(Yes or No)"]
["Type of State Funding\n(Wastewater Revolving Loan, Drinking Water Revolving Loan, Small Community Wastewater Treatment Grant, Other)"]
["Fiscal Year"]
["Amount "]
["Is future year funding likely to be requested?\n(Yes or No)"]
["Funding Alternatives Considered or Applied For\n(Comment Field)"]
["If funding alternatives were not applied for or used, explain why not.\n(Comment field)"]
["Revenue Source for Ongoing Operating Expenses\n(Comment Field)"]
["Is there local approval of the use of the identified operating funds?\n(Yes or No)  (Enclose a copy of local approval of the use of the identified funds)"]
["Status of Planning"]
["Percent Complete"]
["Estimated Completion Date"]
["Status of Design"]
["Percent Complete"]
["Estimated Completion Date"]
["Identify Required Permit(s)\n(Comment Field)"]
["Status of Permitting - Indicate Whether Permit(s) is (are) Planned, Submitted or Received)\n(Comment Field)"]
["Status of Construction"]
["Percent Complete"]
["Estimated Completion Date"]

{"sheet":"Req Form","index":1,"n_rows":5,"n_cols":49,"rows_kept":5,"cut":false,"hidden":true,"merged":[]}
[]
[]
[1,2,3,4,5,6,7,8,9,10,11,12,13,14,15,16,17,18,19,20,21,22,23,24,25,26,27,28,29,30,31,32,33,34,35,36,37,38,39,40,41,42,43,44,45,46,47,48,49]
[null,null,null,null,null,null,null,null,null,null,null,null,null,null,null,null,null,null,null,null,null,null,null,null,null,null,null,null,null,null,null,null,null,null,{"$f":"IF(AF6<>\"\",AF6 & \"/\" &AG6 & \"/\" & AH6,\"\")","v":""},null,null,null,null,null,{"$f":"IF(AL6<>\"\",AL6 & \"/\" & AM6 & \"/\" & AN6,\"\")","v":""},null,null,null,null,null,null,null,{"$f":"IF(AT6<>\"\",AT6 & \"/\" & AU6 & \"/\" & AV6,\"\")","v":""}]
["Sponsor","Proj Title","Recipient","County","Contact","Contact Add","Contact Phone","Contact Email","Proj Description","Statewide Goal","Project Addressed?","Plan Name","Total Proj Cost","Amt Requested","Local Match Amt","Type of Match Pledged","In-Kind Match Description","Financially Disadvantaged?","Population Economic Status?","Proj Previously Funded?","Type of State Funding","Fiscal Year","Amt Fund Requested","Future Funding Requested?","Future Funding Request Date","Applied for Alternative Funding?","If not, why not?","Revenue Sources for Ongoing Operating Expenses?","Local Approval for the use of Identified Operating Funds?","Status Planning","Pct Complete","Est Comp Date MM","Est Comp Date DD","Est Comp Date YR","Est Completion Date","Status of Design","Design % Complete","Design Comp Date MM","Design Comp Date DD","Design Comp Date YR","Est Design Completion Date","Identify Required Permits","Status of Permitting","Status of Construction","Construction Pct Complete","Est Const Comp Date MM","Est Const Comp Date DD","Est Const Comp Date YR","Est Const Completion Date"]

{"sheet":"Water Proj Application","index":2,"n_rows":0,"n_cols":0,"rows_kept":0,"cut":false,"hidden":false,"merged":[]}

{"sheet":"shtPrintPrev","index":3,"n_rows":43,"n_cols":4,"rows_kept":43,"cut":false,"hidden":true,"merged":[]}
[null,"Water Project Application Form"]
[null,"Preview after Data Entry. Form cannot be edited."]
["Num","Field","Data Entered","Column1"]
[1,"Sponsor",{"$f":"INDIRECT(ADDRESS(6,A4,2,1,\"Req Form\"))","v":0},{"$f":"LEN(Table1524[[#This Row],[Data Entered]])","v":1}]
[2,"Proj Title",0,{"$f":"LEN(Table1524[[#This Row],[Data Entered]])","v":1}]
[3,"Recipient",0,{"$f":"LEN(Table1524[[#This Row],[Data Entered]])","v":1}]
[4,"County",0,{"$f":"LEN(Table1524[[#This Row],[Data Entered]])","v":1}]
[5,"Contact",0,{"$f":"LEN(Table1524[[#This Row],[Data Entered]])","v":1}]
[6,"Contact Add",0,{"$f":"LEN(Table1524[[#This Row],[Data Entered]])","v":1}]
[7,"Contact Phone",0,{"$f":"LEN(Table1524[[#This Row],[Data Entered]])","v":1}]
[8,"Contact Email",0,{"$f":"LEN(Table1524[[#This Row],[Data Entered]])","v":1}]
[9,"Proj Description",0,{"$f":"LEN(Table1524[[#This Row],[Data Entered]])","v":1}]
[10,"Statewide Goal",0,{"$f":"LEN(Table1524[[#This Row],[Data Entered]])","v":1}]
[11,"Project Addressed in Plan?",0,{"$f":"LEN(Table1524[[#This Row],[Data Entered]])","v":1}]
[12,"Plan Name",0,{"$f":"LEN(Table1524[[#This Row],[Data Entered]])","v":1}]
[13,"Proj Cost",0,{"$f":"LEN(Table1524[[#This Row],[Data Entered]])","v":1}]
[14,"Amt Requested",0,{"$f":"LEN(Table1524[[#This Row],[Data Entered]])","v":1}]
[15,"Local Match Amt",0,{"$f":"LEN(Table1524[[#This Row],[Data Entered]])","v":1}]
[16,"Type of Match Pledged",0,{"$f":"LEN(Table1524[[#This Row],[Data Entered]])","v":1}]
[17,"In-Kind Match Description",0,{"$f":"LEN(Table1524[[#This Row],[Data Entered]])","v":1}]
[18,"Financially Disadvantaged?",0,{"$f":"LEN(Table1524[[#This Row],[Data Entered]])","v":1}]
[19,"Population Economic Status?",0,{"$f":"LEN(Table1524[[#This Row],[Data Entered]])","v":1}]
[20,"Proj Previously Funded?",0,{"$f":"LEN(Table1524[[#This Row],[Data Entered]])","v":1}]
[21,"Type of State Funding",0,{"$f":"LEN(Table1524[[#This Row],[Data Entered]])","v":1}]
[22,"Fiscal Year",0,{"$f":"LEN(Table1524[[#This Row],[Data Entered]])","v":1}]
[23,"Amt",0,{"$f":"LEN(Table1524[[#This Row],[Data Entered]])","v":1}]
[24,"Future Funding Requested?",0,{"$f":"LEN(Table1524[[#This Row],[Data Entered]])","v":1}]
[25,"Future Funding Date",0,{"$f":"LEN(Table1524[[#This Row],[Data Entered]])","v":1}]
[26,"Applied for Alternative Funding?",0,{"$f":"LEN(Table1524[[#This Row],[Data Entered]])","v":1}]
[27,"If not, why not?",0,{"$f":"LEN(Table1524[[#This Row],[Data Entered]])","v":1}]
[28,"Revenue Sources for Ongoing Operating Expenses?",0,{"$f":"LEN(Table1524[[#This Row],[Data Entered]])","v":1}]
[29,"Local Approval for the use of Identified Operating Funds?",0,{"$f":"LEN(Table1524[[#This Row],[Data Entered]])","v":1}]
[30,"Status of Planning",0,{"$f":"LEN(Table1524[[#This Row],[Data Entered]])","v":1}]
[31,"Status % Complete",{"$f":"INDIRECT(ADDRESS(6,A34,2,1,\"Req Form\"))/100","v":0},{"$f":"LEN(Table1524[[#This Row],[Data Entered]])","v":1}]
[32,"Est Completion Date",{"$f":"'Req Form'!AI4","v":""},{"$f":"LEN(Table1524[[#This Row],[Data Entered]])","v":0}]
[33,"Status of Design",{"$f":"INDIRECT(ADDRESS(6,A36+3,2,1,\"Req Form\"))","v":0},{"$f":"LEN(Table1524[[#This Row],[Data Entered]])","v":1}]
[34,"Design % Complete",{"$f":"INDIRECT(ADDRESS(6,A37+3,2,1,\"Req Form\"))/100","v":0},{"$f":"LEN(Table1524[[#This Row],[Data Entered]])","v":1}]
[35,"Est Design Completion Date",{"$f":"'Req Form'!AO4","v":""},{"$f":"LEN(Table1524[[#This Row],[Data Entered]])","v":0}]
[36,"Identify Required Permits",{"$f":"INDIRECT(ADDRESS(6,A39+6,2,1,\"Req Form\"))","v":0},{"$f":"LEN(Table1524[[#This Row],[Data Entered]])","v":1}]
[37,"Status of Permitting",{"$f":"INDIRECT(ADDRESS(6,A40+6,2,1,\"Req Form\"))","v":0},{"$f":"LEN(Table1524[[#This Row],[Data Entered]])","v":1}]
[38,"Status of Construction",{"$f":"INDIRECT(ADDRESS(6,A41+6,2,1,\"Req Form\"))","v":0},{"$f":"LEN(Table1524[[#This Row],[Data Entered]])","v":1}]
[39,"Construction % Complete",{"$f":"INDIRECT(ADDRESS(6,A42+6,2,1,\"Req Form\"))/100","v":0},{"$f":"LEN(Table1524[[#This Row],[Data Entered]])","v":1}]
[40,"Est Construction Completion Date",{"$f":"'Req Form'!AW4","v":""},{"$f":"LEN(Table1524[[#This Row],[Data Entered]])","v":0}]

{"sheet":"Sheet3","index":4,"n_rows":0,"n_cols":0,"rows_kept":0,"cut":false,"hidden":true,"merged":[]}

{"sheet":"Lists","index":5,"n_rows":134,"n_cols":47,"rows_kept":134,"cut":false,"hidden":true,"merged":[]}
["Representatives",null,null,"County",null,"Answer",null,"Members",null,"Match Type",null,"Pop Econ Status","State Funding Type"]
["Harrell",null,null,"Alachua",null,"Yes",null,"N/A",null,"Cash",null,"Financially Disadvantaged Municipality","Wastewater Revolving Loan",null,null,null,null,"N/A"]
["Hudson",null,null,"Baker",null,"No",null,"Adkins",null,"In-Kind",null,"Rural Area of Economic Concern","Drinking Water Revolving Loan",null,null,null,null,"Adkins"]
["Hutson",null,null,"Bay",null,null,null,"Ahern",null,"N/A",null,"Rural Community Experiencing Economic Distress","Small Community Wastewater Treatment Grant",null,null,null,null,"Ahern"]
["Oliva",null,null,"Bradford",null,null,null,"Albritton",null,null,null,"N/A","Other",null,null,null,null,"Albritton"]
["Patronis",null,null,"Brevard",null,null,null,"Antone",null,null,null,null,"N/A",null,null,null,null,"Antone"]
["Stone",null,null,"Broward",null,null,null,"Artiles",null,null,null,null,null,null,null,null,null,"Artiles"]
["Wood",null,null,"Calhoun",null,null,null,"Avila",null,null,null,"Permit Status",null,null,null,null,null,"Avila"]
[null,null,null,"Charlotte",null,null,null,"Baxley",null,null,null,"Planned",null,null,null,null,null,"Baxley"]
[null,null,null,"Citrus",null,null,null,"Berman",null,null,null,"Submitted",null,null,null,null,null,"Berman"]
[null,null,null,"Clay",null,null,null,"Beshears",null,null,null,"Received",null,null,null,null,null,"Beshears"]
[null,null,null,"Collier",null,null,null,"Bileca",null,null,null,null,null,null,null,null,null,"Bileca"]
[null,null,null,"Columbia",null,null,null,"Boyd",null,null,null,null,null,null,null,null,null,"Boyd"]
[null,null,null,"Dade",null,null,null,"Bracy",null,null,null,null,null,null,null,null,null,"Bracy"]
["Year","YearPrev",null,"DeSoto",null,null,null,"Brodeur",null,null,null,"Statewide Goal","FutYrFund",null,null,null,null,"Brodeur"]
[null,null,null,"Dixie",null,null,null,"Broxson",null,null,null,"Improved Springshed",2016,null,null,null,null,"Broxson"]
[2010,2005,null,"Duval",null,null,null,"Burgess",null,null,null,"Minimum Flow and Level",2017,null,null,null,null,"Burgess"]
[2011,2006,null,"Escambia",null,null,null,"Burton",null,null,null,"Alternative Water Supply",2018,null,null,null,null,"Burton"]
[2012,2007,null,"Flagler",null,null,null,"Caldwell",null,null,null,"Improved Water Body",2019,null,null,null,null,"Caldwell"]
[2013,2008,null,"Franklin",null,null,null,"Campbell",null,null,null,"Basin Management Action Plan",2020,null,null,null,null,"Campbell"]
[2014,2009,null,"Gadsden",null,null,null,"Clarke-Reed",null,null,null,"Area of Critical State Concern",2021,null,null,null,null,"Clarke-Reed"]
[2015,2010,null,"Gilchrist",null,null,null,"Combee",null,null,null,"N/A",2022,null,null,null,null,"Combee"]
[2016,2011,null,"Glades",null,null,null,"Corcoran",null,null,null,null,2023,null,null,null,null,"Corcoran"]
[2017,2012,null,"Gulf",null,null,null,"Cortes, R.",null,null,null,null,2024,null,null,null,null,"Cortes, R."]
[2018,2013,null,"Hamilton",null,null,null,"Cortes, J.",null,null,null,"StatusPlan",null,null,null,null,null,"Cortes, J."]
[2019,2014,null,"Hardee",null,null,null,"Costello",null,null,null,"Ready",null,null,null,null,null,"Costello"]
[2020,2015,null,"Hendry",null,null,null,"Crisafulli",null,null,null,"Not Ready",null,null,null,null,null,"Crisafulli"]
[2021,null,null,"Hernando",null,null,null,"Cruz",null,null,null,null,null,null,null,null,null,"Cruz"]
[2022,null,null,"Highlands",null,null,null,"Cummings",null,null,null,null,null,null,null,null,null,"Cummings"]
[2023,null,null,"Hillsborough",null,null,null,"Diaz, J",null,null,null,null,null,null,null,null,null,"Diaz, J"]
[2024,null,null,"Holmes",null,null,null,"Diaz, M.",null,null,null,null,null,null,null,null,null,"Diaz, M."]
[null,null,null,"Indian River",null,null,null,"Drake",null,null,null,null,null,null,null,null,null,"Drake"]
[null,null,null,"Jackson",null,null,null,"DuBose",null,null,null,null,null,null,null,null,null,"DuBose"]
[null,null,null,"Jefferson",null,null,null,"Dudley",null,null,null,null,null,null,null,null,null,"Dudley"]
[null,null,null,"Lafayette",null,null,null,"Eagle",null,null,null,null,null,null,null,null,null,"Eagle"]
[null,null,null,"Lake",null,null,null,"Edwards",null,null,null,null,null,null,null,null,null,"Edwards"]
[null,null,null,"Lee",null,null,null,"Eisnaugle",null,null,null,null,null,null,null,null,null,"Eisnaugle"]
[null,null,null,"Leon",null,null,null,"Fant",null,null,null,null,null,null,null,null,null,"Fant"]
[null,null,null,"Levy",null,null,null,"Fitzenhagen",null,null,null,null,null,null,null,null,null,"Fitzenhagen"]
[null,null,null,"Liberty",null,null,null,"Fresen",null,null,null,null,null,null,null,null,null,"Fresen"]
[null,null,null,"Madison",null,null,null,"Full wood",null,null,null,null,null,null,null,null,null,"Gaetz"]
[null,null,null,"Manatee",null,null,null,"Gaetz",null,null,null,null,null,null,null,null,null,"Geller"]
["DayCal","MonthCal",null,"Marion",null,null,null,"Geller",null,null,null,null,null,null,null,null,null,"Gonzalez"]
["01","01",null,"Martin",null,null,null,"Gonzalez",null,null,null,null,null,null,null,null,null,"Goodson"]
["02","02",null,"Monroe",null,null,null,"Goodson",null,null,null,null,null,null,null,null,null,"Hager"]
["03","03",null,"Nassau",null,null,null,"Grant",null,null,null,null,null,null,null,null,null,"Harrell"]
["04","04",null,"Okaloosa",null,null,null,"Hager",null,null,null,null,null,null,null,null,null,"Hill"]
["05","05",null,"Okeechobee",null,null,null,"Harrell",null,null,null,null,null,null,null,null,null,"Harrison"]
["06","06",null,"Orange",null,null,null,"Hill",null,null,null,null,null,null,null,null,null,"Hudson"]
["07","07",null,"Osceola",null,null,null,"Harrison",null,null,null,null,null,null,null,null,null,"Hutson"]
["08","08",null,"Palm Beach",null,null,null,"Hudson",null,null,null,null,null,null,null,null,null,"Ingoglia"]
["09","09",null,"Pasco",null,null,null,"Ingoglia",null,null,null,null,null,null,null,null,null,"Ingram"]
["10","10",null,"Pinellas",null,null,null,"Ingram",null,null,null,null,null,null,null,null,null,"Jacobs"]
["11","11",null,"Polk",null,null,null,"Jacobs",null,null,null,null,null,null,null,null,null,"Jenne"]
["12","12",null,"Putnam",null,null,null,"Jenne",null,null,null,null,null,null,null,null,null,"Jones, M."]
["13",null,null,"St. Johns",null,null,null,"Jones, M.",null,null,null,null,null,null,null,null,null,"Jones, S."]
["14",null,null,"St. Lucie",null,null,null,"Jones, S.",null,null,null,null,null,null,null,null,null,"Kerner"]
["15",null,null,"Santa Rosa",null,null,null,"Kerner",null,null,null,null,null,null,null,null,null,"La Rosa"]
["16",null,null,"Sarasota",null,null,null,"La Rosa",null,null,null,null,null,null,null,null,null,"Latvala"]
["17",null,null,"Seminole",null,null,null,"Latvala",null,null,null,null,null,null,null,null,null,"Lee"]
["18",null,null,"Sumter",null,null,null,"Lee",null,null,null,null,null,null,null,null,null,"Magar"]
["19",null,null,"Suwannee",null,null,null,"Magar",null,null,null,null,null,null,null,null,null,"Mayfield"]
["20",null,null,"Taylor",null,null,null,"Mayfield",null,null,null,null,null,null,null,null,null,"McBurney"]
["21",null,null,"Union",null,null,null,"McBurney",null,null,null,null,null,null,null,null,null,"McGhee"]
["22",null,null,"Volusia",null,null,null,"McGhee",null,null,null,null,null,null,null,null,null,"Metz"]
["23",null,null,"Wakulla",null,null,null,"Metz",null,null,null,null,null,null,null,null,null,"Miller"]
["24",null,null,"Walton",null,null,null,"Miller",null,null,null,null,null,null,null,null,null,"Moraitis"]
["25",null,null,"Washington",null,null,null,"Moraitis",null,null,null,null,null,null,null,null,null,"Moskowitz"]
["26",null,null,null,null,null,null,"Moskowitz",null,null,null,null,null,null,null,null,null,"Murphy"]
["27",null,null,null,null,null,null,"Murphy",null,null,null,null,null,null,null,null,null,"Narain"]
["28",null,null,null,null,null,null,"Narain",null,null,null,null,null,null,null,null,null,"Nuñez"]
["29",null,null,null,null,null,null,"Nuñez",null,null,null,null,null,null,null,null,null,"Oliva"]
["30",null,null,null,null,null,null,"Oliva",null,null,null,null,null,null,null,null,null,"O'Toole"]
["31",null,null,null,null,null,null,"O'Toole",null,null,null,null,null,null,null,null,null,"Pafford"]
[null,null,null,null,null,null,null,"Pafford",null,null,null,null,null,null,null,null,null,"Passidomo"]
[null,null,null,null,null,null,null,"Passidomo",null,null,null,null,null,null,null,null,null,"Perry"]
[null,null,null,null,null,null,null,"Perry",null,null,null,null,null,null,null,null,null,"Peters"]
[null,null,null,null,null,null,null,"Peters",null,null,null,null,null,null,null,null,null,"Pigman"]
[null,null,null,null,null,null,null,"Pigman",null,null,null,null,null,null,null,null,null,"Pilon"]
[null,null,null,null,null,null,null,"Pilon",null,null,null,null,null,null,null,null,null,"Plakon"]
[null,null,null,null,null,null,null,"Plakon",null,null,null,null,null,null,null,null,null,"Plasencia"]
[null,null,null,null,null,null,null,"Plasencia",null,null,null,null,null,null,null,null,null,"Porter"]
[null,null,null,null,null,null,null,"Porter",null,null,null,null,null,null,null,null,null,"Powell"]
[null,null,null,null,null,null,null,"Powell",null,null,null,null,null,null,null,null,null,"Pritchett"]
[null,null,null,null,null,null,null,"Pritchett",null,null,null,null,null,null,null,null,null,"Raburn"]
[null,null,null,null,null,null,null,"Raburn",null,null,null,null,null,null,null,null,null,"Rader"]
[null,null,null,null,null,null,null,"Rader",null,null,null,null,null,null,null,null,null,"Raschein"]
[null,null,null,null,null,null,null,"Raschein",null,null,null,null,null,null,null,null,null,"Raulerson"]
[null,null,null,null,null,null,null,"Raulerson",null,null,null,null,null,null,null,null,null,"Ray"]
[null,null,null,null,null,null,null,"Ray",null,null,null,null,null,null,null,null,null,"Rehwinkel Vasilinda"]
[null,null,null,null,null,null,null,"Rehwinkel Vasilinda",null,null,null,null,null,null,null,null,null,"Renuart"]
[null,null,null,null,null,null,null,"Renner",null,null,null,null,null,null,null,null,null,"Richardson"]
[null,null,null,null,null,null,null,"Richardson",null,null,null,null,null,null,null,null,null,"Roberson"]
[null,null,null,null,null,null,null,"Roberson",null,null,null,null,null,null,null,null,null,"Rodrigues, R."]
[null,null,null,null,null,null,null,"Rodrigues, R.",null,null,null,null,null,null,null,null,null,"Rodríguez, J."]
[null,null,null,null,null,null,null,"Rodríguez, J.",null,null,null,null,null,null,null,null,null,"Rogers"]
[null,null,null,null,null,null,null,"Rogers",null,null,null,null,null,null,null,null,null,"Rooney"]
[null,null,null,null,null,null,null,"Rooney",null,null,null,null,null,null,null,null,null,"Rouson"]
[null,null,null,null,null,null,null,"Rouson",null,null,null,null,null,null,null,null,null,"Santiago"]
[null,null,null,null,null,null,null,"Santiago",null,null,null,null,null,null,null,null,null,"Slosberg"]
[null,null,null,null,null,null,null,"Slosberg",null,null,null,null,null,null,null,null,null,"Smith"]
[null,null,null,null,null,null,null,"Smith",null,null,null,null,null,null,null,null,null,"Spano"]
[null,null,null,null,null,null,null,"Spano",null,null,null,null,null,null,null,null,null,"Sprowls"]
[null,null,null,null,null,null,null,"Sprowls",null,null,null,null,null,null,null,null,null,"Stafford"]
[null,null,null,null,null,null,null,"Stafford",null,null,null,null,null,null,null,null,null,"Stark"]
[null,null,null,null,null,null,null,"Stark",null,null,null,null,null,null,null,null,null,"Steube"]
[null,null,null,null,null,null,null,"Steube",null,null,null,null,null,null,null,null,null,"Stone"]
[null,null,null,null,null,null,null,"Stevenson",null,null,null,null,null,null,null,null,null,"Sullivan"]
[null,null,null,null,null,null,null,"Stone",null,null,null,null,null,null,null,null,null,"Taylor"]
[null,null,null,null,null,null,null,"Sullivan",null,null,null,null,null,null,null,null,null,"Tobia"]
[null,null,null,null,null,null,null,"Taylor",null,null,null,null,null,null,null,null,null,"Torres"]
[null,null,null,null,null,null,null,"Tobia",null,null,null,null,null,null,null,null,null,"Trujillo"]
[null,null,null,null,null,null,null,"Torres",null,null,null,null,null,null,null,null,null,"Trumbull"]
[null,null,null,null,null,null,null,"Trujillo",null,null,null,null,null,null,null,null,null,"Van Zant"]
[null,null,null,null,null,null,null,"Trumbull",null,null,null,null,null,null,null,null,null,"Watson, B."]
[null,null,null,null,null,null,null,"Van Zant",null,null,null,null,null,null,null,null,null,"Watson, C."]
[null,null,null,null,null,null,null,"Watson, B.",null,null,null,null,null,null,null,null,null,"Williams"]
[null,null,null,null,null,null,null,"Watson, C.",null,null,null,null,null,null,null,null,null,"Wood"]
[null,null,null,null,null,null,null,"Williams",null,null,null,null,null,null,null,null,null,"Workman"]
[null,null,null,null,null,null,null,"Wood",null,null,null,null,null,null,null,null,null,"Young"]
[null,null,null,null,null,null,null,"Workman"]
[null,null,null,null,null,null,null,"Young"]
[]
[]
[]
[]
[]
[]
[]
[]
[]
[]
[]
["Sponsor","Proj Title","Recipient","County","Contact","Contact Add","Contact Phone","Contact Email","Proj Description","Statewide Goal","Project Addressed?","Plan Name","Total Proj Cost","Amt Requested","Local Match Amt","Type of Match Pledged","In-Kind Match Description","Financially Disadvantaged?","Population Economic Status?","Proj Previously Funded?","Type of State Funding","Fiscal Year","Amt Fund Requested","Future Funding Requested?","Future Funding Request Date","Applied for Alternative Funding?","If not, why not?","Revenue Sources for Ongoing Operating Expenses?","Local Approval for the use of Identified Operating Funds?","Sec 8 Constitution","Status Planning","Pct Complete",null,null,null,"Est Completion Date","Status of Design","Design % Complete",null,null,null,"Est Design Completion Date","Identify Required Permits","Status of Permitting","Status of Construction","Construction Pct Complete","Est Const Completion Date"]